fUSD/lending_fUSD_20260528
["ID","MTS","AMOUNT","RATE_DAILY","PERIOD"]
[423229956,1779960632000,-161.34451425,0.00014589,2]
[423229955,1779960632000,-9670.57,0.00014504,2]
[423229959,1779960632000,-700.0,0.000147,5]
[423229953,1779960632000,-9999.99,0.00014504,2]
[423229954,1779960632000,-5463.66,0.00014504,2]
[423229952,1779960632000,-9999.99,0.00014504,2]
[423229961,1779960632000,-639.86377034,0.000147,2]
[423229962,1779960632000,-156.0,0.00014702,2]
[423229974,1779960632000,-725.64,0.00014803,2]
[423229964,1779960632000,-500.0,0.00014726,2]
[423229975,1779960632000,-2934.44177693,0.00014811,2]
[423229966,1779960632000,-2500.0,0.000148,2]
[423229963,1779960632000,-731.3219,0.00014722,2]
[423229971,1779960632000,-3773.4138,0.000148,2]
[423229965,1779960632000,-157.98,0.00014771,2]
[423229960,1779960632000,-500.0,0.000147,5]
[423229972,1779960632000,-700.0,0.000148,5]
[423230029,1779960633000,-48090.38261697,0.00014992,2]
[423230023,1779960633000,-418.0,0.00014921,2]
[423230015,1779960633000,-5000.0,0.000149,2]
[423230022,1779960633000,-1225.0,0.00014921,2]
[423230020,1779960633000,-525.0,0.00014921,2]
[423230021,1779960633000,-1412.213,0.00014921,2]
[423230024,1779960633000,-3611.6069798,0.00014921,2]
[423230030,1779960633000,-37237.33117533,0.00014992,2]
[423230031,1779960633000,-10000.0,0.00014994,2]
[423230032,1779960633000,-500.0,0.00014999,2]
[423230025,1779960633000,-25.3930202,0.00014921,2]
[423230026,1779960633000,-150.0,0.00014925,2]
[423230027,1779960633000,-201.9,0.00014986,2]
[423230033,1779960633000,-505.468191,0.00014999,2]
[423230018,1779960633000,-2247.08336597,0.000149,2]
[423230035,1779960633000,-160.54953969,0.00014999,2]
[423230028,1779960633000,-8807.9872223,0.00014992,2]
[423230016,1779960633000,-700.0,0.000149,5]
[423230011,1779960633000,-500.0,0.00014899,2]
[423230014,1779960633000,-10759.45526489,0.000149,2]
[423230041,1779960633000,-500.0,0.00014999,2]
[423229998,1779960633000,-2247.08336597,0.00014867,2]
[423229999,1779960633000,-292.42026097,0.00014871,2]
[423230001,1779960633000,-2247.08336597,0.00014878,2]
[423230000,1779960633000,-2934.44177693,0.00014878,2]
[423229996,1779960633000,-2000.0,0.0001486,2]
[423229997,1779960633000,-2934.44177693,0.00014867,2]
[423230008,1779960633000,-500.0,0.00014899,2]
[423230019,1779960633000,-292.42026097,0.000149,2]
[423230009,1779960633000,-500.0,0.00014899,2]
[423230012,1779960633000,-383611.05114442,0.000149,2]
[423230013,1779960633000,-80612.93319069,0.000149,2]
[423230002,1779960633000,-200.0,0.0001488,2]
[423230007,1779960633000,-544.38223571,0.00014899,2]
[423230003,1779960633000,-292.42026097,0.00014886,2]
[423230004,1779960633000,-2934.44177693,0.00014889,2]
[423230006,1779960633000,-500.0,0.00014899,2]
[423230005,1779960633000,-2247.08336597,0.00014889,2]
[423230010,1779960633000,-500.0,0.00014899,2]
[423230034,1779960633000,-567.76,0.00014999,2]
[423230017,1779960633000,-2934.44177693,0.000149,2]
[423230043,1779960633000,-500.0,0.00014999,2]
[423230059,1779960633000,-500.0,0.00014999,2]
[423230068,1779960633000,-500.0,0.00014999,2]
[423230057,1779960633000,-500.0,0.00014999,2]
[423230062,1779960633000,-500.0,0.00014999,2]
[423230066,1779960633000,-500.0,0.00014999,2]
[423230063,1779960633000,-500.0,0.00014999,2]
[423230064,1779960633000,-500.0,0.00014999,2]
[423230061,1779960633000,-500.0,0.00014999,2]
[423230060,1779960633000,-500.0,0.00014999,2]
[423230070,1779960633000,-500.0,0.00014999,2]
[423230073,1779960633000,-500.0,0.00014999,2]
[423230076,1779960633000,-482811.03769424,0.00015,2]
[423230074,1779960633000,-2448.0,0.00015,5]
[423230075,1779960633000,-2310.0,0.00015,5]
[423230071,1779960633000,-500.0,0.00014999,2]
[423230072,1779960633000,-500.0,0.00014999,2]
[423230077,1779960633000,-18248.47643739,0.00015,2]
[423230069,1779960633000,-500.0,0.00014999,2]
[423230067,1779960633000,-500.0,0.00014999,2]
[423230065,1779960633000,-500.0,0.00014999,2]
[423230052,1779960633000,-500.0,0.00014999,2]
[423230058,1779960633000,-500.0,0.00014999,2]
[423230036,1779960633000,-535.38,0.00014999,2]
[423230037,1779960633000,-500.0,0.00014999,2]
[423230040,1779960633000,-500.0,0.00014999,2]
[423230038,1779960633000,-500.0,0.00014999,2]
[423230039,1779960633000,-500.0,0.00014999,2]
[423230045,1779960633000,-500.0,0.00014999,2]
[423230049,1779960633000,-500.0,0.00014999,2]
[423230047,1779960633000,-500.0,0.00014999,2]
[423230042,1779960633000,-500.0,0.00014999,2]
[423230051,1779960633000,-500.0,0.00014999,2]
[423230048,1779960633000,-500.0,0.00014999,2]
[423230055,1779960633000,-500.0,0.00014999,2]
[423230053,1779960633000,-500.0,0.00014999,2]
[423230050,1779960633000,-500.0,0.00014999,2]
[423230044,1779960633000,-500.0,0.00014999,2]
[423230046,1779960633000,-500.0,0.00014999,2]
[423230056,1779960633000,-500.0,0.00014999,2]
[423230054,1779960633000,-500.0,0.00014999,2]
[423230082,1779960638000,-426.57584689,0.000147,2]
[423230084,1779960638000,-422.42415311,0.00015,2]
[423230088,1779960638000,-462.12712059,0.00015,2]
[423230089,1779960638000,-780.86,0.00015,2]
[423230086,1779960638000,-273.2694314,0.00015,2]
[423230090,1779960638000,-500.0,0.00015,2]
[423230091,1779960638000,-450.17422658,0.00015,2]
[423230093,1779960638000,-39240.56745736,0.00015,2]
[423230095,1779960638000,-1643.32927314,0.00015,30]
[423230097,1779960638000,-150.0,0.00015,2]
[423230094,1779960638000,-716053.93954766,0.00015,2]
[423230098,1779960638000,-1405.72280327,0.00015,2]
[423230096,1779960638000,-539.29600568,0.00015,30]
[423230100,1779960638000,-7643075.23405601,0.00015,2]
[423230092,1779960638000,-4553.62718346,0.00015,2]
[423230099,1779960638000,-200.0,0.00015,2]
[423230109,1779960640000,-652.04183587,0.00015,2]
[423230111,1779960641000,-1213.01398702,0.00015,2]
[423230110,1779960641000,-284.38389793,0.000147,2]
[423230147,1779960643000,-454.68174005,0.00015,2]
[423230149,1779960643000,-4399.84067227,0.00015,2]
[423230152,1779960643000,-3521.68008655,0.00015,2]
[423230151,1779960643000,-687.11363325,0.00015,2]
[423230150,1779960643000,-1226.85239246,0.00015,2]
[423230148,1779960643000,-777.65668198,0.00015,2]
[423230153,1779960644000,-10572.24800258,0.00015,2]
[423230155,1779960644000,-438.06726053,0.00015,2]
[423230154,1779960644000,-13997.29148497,0.00015,2]
[423230285,1779960646000,-4580.66725332,0.00014921,2]
[423230284,1779960646000,-733.56,0.00014921,2]
[423230286,1779960646000,-749.77274668,0.00014921,2]
[423230287,1779960646000,-4917.32695332,0.00015,2]
[423230288,1779960647000,-5089.98681558,0.00015,2]
[423230292,1779961084000,500.0,0.00028082,120]
[423230293,1779961328000,155.74,6.946e-05,2]
[423230294,1779961341000,2667.0,0.00028082,120]
[423230295,1779961464000,247.42342843,0.00026571,120]
[423230297,1779961544000,154.31921562,0.00011,3]
[423230299,1779961605000,158.99555549,0.00011,3]
[423230301,1779961648000,-422.79245849,0.00013356,2]
[423230300,1779961648000,-154.31921562,0.00012401,2]
[423230336,1779961836000,-200.0,0.00013699,2]
[423230337,1779961836000,-150.0,0.00013737,2]
[423230350,1779961836000,-200.0,0.00014,2]
[423230351,1779961836000,-150.0,0.00014033,2]
[423230341,1779961836000,-150.54,0.00013829,2]
[423230340,1779961836000,-150.0,0.0001376,2]
[423230348,1779961836000,-150.0,0.00013987,2]
[423230345,1779961836000,-150.0,0.00013896,2]
[423230343,1779961836000,-200.0,0.00013868,2]
[423230349,1779961836000,-250.0,0.00014,2]
[423230347,1779961836000,-150.0,0.00013987,2]
[423230346,1779961836000,-150.0,0.00013987,2]
[423230353,1779961836000,-500.0,0.00014168,2]
[423230352,1779961836000,-500.0,0.00014168,2]
[423230334,1779961836000,-188.0,0.00013667,2]
[423230330,1779961836000,-205.82,0.00013602,2]
[423230310,1779961836000,-150.0,0.00013488,2]
[423230332,1779961836000,-150.0,0.00013624,2]
[423230355,1779961836000,-150.0,0.00014169,2]
[423230305,1779961836000,-260.30521726,0.00013356,2]
[423230304,1779961836000,-77.20754151,0.00013356,2]
[423230306,1779961836000,-1200.0,0.00013487,2]
[423230307,1779961836000,-150.00000001,0.00013488,2]
[423230308,1779961836000,-150.0,0.00013488,2]
[423230309,1779961836000,-150.0,0.00013488,2]
[423230312,1779961836000,-150.0,0.00013488,2]
[423230314,1779961836000,-150.67938172,0.00013488,2]
[423230324,1779961836000,-150.0,0.00013533,2]
[423230326,1779961836000,-351.97,0.00013558,2]
[423230320,1779961836000,-150.0,0.00013488,2]
[423230318,1779961836000,-150.0,0.00013488,2]
[423230316,1779961836000,-150.0,0.00013488,2]
[423230328,1779961836000,-2000.0,0.00013566,2]
[423230322,1779961836000,-150.0,0.00013488,2]
[423230354,1779961836000,-378.26755779,0.00014168,2]
[423230373,1779961836000,-500.0,0.0001444,2]
[423230359,1779961836000,-150.0,0.00014237,2]
[423230377,1779961836000,-537.1808123,0.0001444,2]
[423230379,1779961836000,-500.0,0.0001444,2]
[423230381,1779961836000,-500.0,0.0001444,2]
[423230389,1779961836000,-665.35,0.00014497,2]
[423230380,1779961836000,-500.0,0.0001444,2]
[423230378,1779961836000,-150.0,0.0001444,2]
[423230375,1779961836000,-500.0,0.0001444,2]
[423230383,1779961836000,-500.0,0.0001444,2]
[423230385,1779961836000,-150.0,0.00014441,2]
[423230387,1779961836000,-150.0,0.00014487,2]
[423230384,1779961836000,-577.41851285,0.0001444,2]
[423230386,1779961836000,-150.0,0.00014487,2]
[423230390,1779961836000,-9298.36,0.00014497,2]
[423230362,1779961836000,-1400.0,0.000143,5]
[423230388,1779961836000,-150.0,0.00014487,2]
[423230376,1779961836000,-500.0,0.0001444,2]
[423230382,1779961836000,-500.0,0.0001444,2]
[423230374,1779961836000,-500.0,0.0001444,2]
[423230372,1779961836000,-500.0,0.0001444,2]
[423230360,1779961836000,-150.0,0.00014237,2]
[423230358,1779961836000,-150.0,0.00014237,2]
[423230361,1779961836000,-163.67,0.00014256,2]
[423230356,1779961836000,-536.73,0.000142,2]
[423230364,1779961836000,-150.0,0.00014305,2]
[423230363,1779961836000,-500.0,0.00014301,2]
[423230365,1779961836000,-150.0,0.00014347,2]
[423230357,1779961836000,-700.0,0.000142,5]
[423230367,1779961836000,-500.0,0.0001444,2]
[423230369,1779961836000,-500.0,0.0001444,2]
[423230368,1779961836000,-500.0,0.0001444,2]
[423230366,1779961836000,-2100.0,0.000144,5]
[423230370,1779961836000,-500.0,0.0001444,2]
[423230371,1779961836000,-500.0,0.0001444,2]
[423230391,1779961836000,-2900.0,0.000145,5]
[423230420,1779961837000,-558.95066,0.0001485,2]
[423230416,1779961837000,-164.998,0.0001483,2]
[423230412,1779961837000,-150.0,0.00014714,2]
[423230417,1779961837000,-1680.0,0.00014835,2]
[423230418,1779961837000,-408.85,0.00014847,2]
[423230419,1779961837000,-558.95065,0.0001485,2]
[423230413,1779961837000,-150.0,0.00014737,2]
[423230421,1779961837000,-150.0,0.0001485,2]
[423230430,1779961837000,-2312.61158887,0.000149,2]
[423230422,1779961837000,-558.95065,0.0001486,2]
[423230424,1779961837000,-200.0,0.0001488,2]
[423230425,1779961837000,-2214.22514069,0.00014894,2]
[423230427,1779961837000,-500.0,0.00014899,2]
[423230428,1779961837000,-500.0,0.00014899,2]
[423230426,1779961837000,-525.71063525,0.00014899,2]
[423230429,1779961837000,-500.0,0.00014899,2]
[423230414,1779961837000,-700.0,0.000148,5]
[423230423,1779961837000,-272.57,0.0001486,2]
[423230415,1779961837000,-2563.717,0.0001483,2]
[423230395,1779961837000,-299.99,0.00014504,2]
[423230411,1779961837000,-700.0,0.000147,5]
[423230392,1779961837000,-150.99,0.00014504,2]
[423230393,1779961837000,-2940.98,0.00014504,2]
[423230431,1779961837000,-319.32388994,0.000149,2]
[423230394,1779961837000,-999.99,0.00014504,2]
[423230396,1779961837000,-150.0,0.00014578,2]
[423230401,1779961837000,-500.0,0.00014647,2]
[423230403,1779961837000,-500.0,0.00014647,2]
[423230399,1779961837000,-500.0,0.00014647,2]
[423230402,1779961837000,-500.0,0.00014647,2]
[423230398,1779961837000,-500.0,0.00014647,2]
[423230400,1779961837000,-500.0,0.00014647,2]
[423230405,1779961837000,-500.0,0.00014647,2]
[423230404,1779961837000,-500.0,0.00014647,2]
[423230407,1779961837000,-247.48052146,0.00014647,2]
[423230406,1779961837000,-500.0,0.00014647,2]
[423230409,1779961837000,-150.0,0.00014647,2]
[423230408,1779961837000,-150.0,0.00014647,2]
[423230410,1779961837000,-245.24118621,0.00014647,2]
[423230433,1779961837000,-5000.0,0.000149,2]
[423230397,1779961837000,-3600.0,0.000146,5]
[423230434,1779961837000,-700.0,0.000149,5]
[423230458,1779961837000,-16016.09455837,0.00014994,2]
[423230460,1779961837000,-2325.6317723,0.00014994,2]
[423230461,1779961837000,-180.9898043,0.00014994,2]
[423230466,1779961837000,-500.0,0.00014999,2]
[423230457,1779961837000,-5117.30296317,0.00014993,2]
[423230459,1779961837000,-8025.25635273,0.00014994,2]
[423230462,1779961837000,-24249.3521108,0.00014994,2]
[423230464,1779961837000,-37062.1001489,0.00014994,2]
[423230463,1779961837000,-824.2804893,0.00014994,2]
[423230465,1779961837000,-2813.0000002,0.00014994,2]
[423230468,1779961837000,-500.0,0.00014999,2]
[423230467,1779961837000,-500.0,0.00014999,2]
[423230470,1779961837000,-326.11,0.00014999,2]
[423230469,1779961837000,-500.0,0.00014999,2]
[423230474,1779961837000,-34990.11761512,0.00015,2]
[423230472,1779961837000,-1481.0,0.00015,5]
[423230473,1779961837000,-10346.55572544,0.00015,2]
[423230456,1779961837000,-500.0,0.00014991,2]
[423230455,1779961837000,-214.33167711,0.0001499,2]
[423230471,1779961837000,-1849.0,0.00015,5]
[423230451,1779961837000,-150.0,0.00014986,2]
[423230454,1779961837000,-150.0,0.00014986,2]
[423230438,1779961837000,-3549.0,0.00014921,2]
[423230437,1779961837000,-7933.87395972,0.000149,2]
[423230435,1779961837000,-910.4926,0.000149,2]
[423230436,1779961837000,-3001.26439626,0.000149,2]
[423230439,1779961837000,-928.0,0.00014921,2]
[423230440,1779961837000,-1356.0,0.00014921,2]
[423230441,1779961837000,-1210.2009527,0.00014921,2]
[423230443,1779961837000,-525.0,0.00014921,2]
[423230432,1779961837000,-509.62792467,0.000149,2]
[423230445,1779961837000,-418.0,0.00014921,2]
[423230444,1779961837000,-932.0,0.00014921,2]
[423230446,1779961837000,-150.0,0.00014925,2]
[423230447,1779961837000,-522.0534976,0.00014959,2]
[423230442,1779961837000,-61.7990473,0.00014921,2]
[423230448,1779961837000,-205.82,0.00014962,2]
[423230449,1779961837000,-150.0,0.00014986,2]
[423230450,1779961837000,-150.0,0.00014986,2]
[423230452,1779961837000,-150.0,0.00014986,2]
[423230453,1779961837000,-150.0,0.00014986,2]
[423230482,1779961838000,-248.17,0.00015,2]
[423230481,1779961838000,-1729.49718832,0.00015,30]
[423230478,1779961838000,-165.3,0.000136,2]
[423230479,1779961838000,-2214.22514064,0.00014895,2]
[423230483,1779961838000,-1684898.90047551,0.00015,2]
[423230480,1779961838000,-6851185.96367149,0.00015,2]
[423230501,1779961840000,-47190.00893938,0.00015,2]
[423230525,1779961843000,-1396.7831452,0.00015,2]
[423230523,1779961843000,-960.82008403,0.00015,2]
[423230524,1779961843000,-2538.99218862,0.00015,2]
[423230522,1779961843000,-2214.22514064,0.00014895,2]
[423230542,1779961847000,-5000.0,0.000149,2]
[423230543,1779961847000,-2814.08218856,0.00014921,2]
[423230550,1779961855000,152.0,9.493e-05,7]
[423230554,1779962001000,1380.86651145,0.0001,2]
[423230558,1779962300000,155.74,7.005e-05,2]
[423230560,1779962598000,513.88898,0.00026036,120]
[423230561,1779962616000,152.0,9.494e-05,7]
[423230566,1779962837000,-259.53,0.00013693,2]
[423230565,1779962837000,-500.0,0.00013356,2]
[423230564,1779962837000,-500.0,0.00013356,2]
[423230567,1779962837000,-63.69174262,0.00013699,2]
[423230563,1779962837000,-500.0,0.00013356,2]
[423230580,1779963031000,-1200.0,0.00013906,2]
[423230573,1779963031000,-500.0,0.00013356,2]
[423230572,1779963031000,-500.0,0.00013356,2]
[423230574,1779963031000,-209.03147293,0.00013356,2]
[423230576,1779963031000,-2014.22,0.00013662,2]
[423230575,1779963031000,-175.98,0.00013631,2]
[423230577,1779963031000,-167.27,0.00013674,2]
[423230579,1779963031000,-200.0,0.00013699,2]
[423230578,1779963031000,-127.10825738,0.00013699,2]
[423230583,1779963031000,-155.74,0.00014009,2]
[423230588,1779963031000,-150.0,0.00014016,2]
[423230587,1779963031000,-700.94893261,0.00014016,2]
[423230582,1779963031000,-155.02,0.00013935,2]
[423230581,1779963031000,-2000.0,0.00013907,2]
[423230584,1779963031000,-392.0,0.00014011,2]
[423230586,1779963031000,-272.85036167,0.00014012,2]
[423230585,1779963031000,-177.0,0.00014011,2]
[423230590,1779963031000,-259.53,0.00014036,2]
[423230589,1779963031000,-36704.85,0.00014017,2]
[423230591,1779963032000,-266.79,0.00014074,2]
[423230593,1779963032000,-1577.91475067,0.00014329,2]
[423230592,1779963032000,-1577.91475067,0.00014274,2]
[423230596,1779963032000,-197502.4868341,0.00014338,2]
[423230598,1779963032000,-17922.91934106,0.00014338,2]
[423230595,1779963032000,-235.95922447,0.00014337,2]
[423230597,1779963032000,-28864.71006998,0.00014338,2]
[423230594,1779963032000,-225.85313019,0.00014337,2]
[423230621,1779963037000,-82.76125302,0.00013906,2]
[423230619,1779963037000,-500.0,0.00013906,2]
[423230622,1779963037000,-500.0,0.00013906,2]
[423230620,1779963037000,-174.80311392,0.00013906,2]
[423230624,1779963037000,-500.0,0.00013906,2]
[423230625,1779963037000,-210.08792957,0.00013906,2]
[423230626,1779963037000,-5526.78661089,0.00014338,2]
[423230623,1779963037000,-500.0,0.00013906,2]
[423230657,1779963038000,-2196.24753017,0.00014839,2]
[423230660,1779963038000,-1000.0,0.0001485,2]
[423230651,1779963038000,-6064.0,0.00014791,2]
[423230653,1779963038000,-2196.24753024,0.00014821,2]
[423230654,1779963038000,-2196.24753017,0.0001483,2]
[423230661,1779963038000,-1000.0,0.0001485,2]
[423230652,1779963038000,-2800.0,0.000148,5]
[423230655,1779963038000,-2050.974,0.00014836,2]
[423230656,1779963038000,-164.998,0.00014836,2]
[423230662,1779963038000,-2196.24753017,0.00014856,2]
[423230669,1779963038000,-2500.0,0.00014899,2]
[423230672,1779963038000,-5000.0,0.000149,2]
[423230673,1779963038000,-500.0,0.000149,5]
[423230671,1779963038000,-2196.24753017,0.000149,2]
[423230670,1779963038000,-163.57588558,0.000149,2]
[423230664,1779963038000,-2196.24753017,0.00014865,2]
[423230666,1779963038000,-200.0,0.0001488,2]
[423230663,1779963038000,-1000.0,0.0001486,2]
[423230667,1779963038000,-2196.24753017,0.00014882,2]
[423230675,1779963038000,-150.7587077,0.000149,2]
[423230685,1779963038000,-150.359,0.00014921,2]
[423230659,1779963038000,-1577.91475067,0.00014849,2]
[423230668,1779963038000,-2196.24753017,0.00014891,2]
[423230658,1779963038000,-2196.24753017,0.00014847,2]
[423230639,1779963038000,-41494.6429,0.00014547,2]
[423230648,1779963038000,-259.53,0.0001472,2]
[423230674,1779963038000,-341.97930358,0.000149,2]
[423230627,1779963038000,-38669.34884397,0.00014338,2]
[423230629,1779963038000,-259.53,0.00014378,2]
[423230628,1779963038000,-478.45,0.00014351,2]
[423230630,1779963038000,-1577.91475067,0.00014384,2]
[423230632,1779963038000,-500.0,0.000144,5]
[423230633,1779963038000,-1577.91475067,0.00014438,2]
[423230631,1779963038000,-478.45,0.00014389,2]
[423230635,1779963038000,-1577.91475067,0.00014493,2]
[423230636,1779963038000,-1434.86,0.00014497,2]
[423230650,1779963038000,-3637.0,0.00014791,2]
[423230634,1779963038000,-150.75870771,0.00014447,2]
[423230640,1779963038000,-1577.91475067,0.00014548,2]
[423230638,1779963038000,-1100.0,0.000145,5]
[423230641,1779963038000,-1700.0,0.000146,5]
[423230649,1779963038000,-1577.91475067,0.00014767,2]
[423230647,1779963038000,-1577.91475067,0.00014712,2]
[423230644,1779963038000,-1577.91475067,0.00014658,2]
[423230646,1779963038000,-2300.0,0.000147,5]
[423230642,1779963038000,-1577.91475067,0.00014603,2]
[423230643,1779963038000,-478.45,0.0001461,2]
[423230645,1779963038000,-11343.1518,0.000147,2]
[423230637,1779963038000,-478.45,0.00014499,2]
[423230678,1779963038000,-150.0,0.00014921,2]
[423230665,1779963038000,-2196.24753017,0.00014874,2]
[423230677,1779963038000,-250.0,0.00014921,2]
[423230707,1779963038000,-1000.0,0.00015,2]
[423230704,1779963038000,-200.0,0.00015,2]
[423230700,1779963038000,-150.0,0.00015,2]
[423230706,1779963038000,-1541.92881931,0.00015,2]
[423230705,1779963038000,-1000.0,0.00015,2]
[423230702,1779963038000,-245.61,0.00015,2]
[423230712,1779963038000,-187.0,0.00015,2]
[423230713,1779963038000,-188.70163767,0.00015,2]
[423230721,1779963038000,-200.0,0.0001515,2]
[423230715,1779963038000,-542.20127669,0.00015,2]
[423230717,1779963038000,-330.0,0.00015014,3]
[423230714,1779963038000,-309.0,0.00015,2]
[423230718,1779963038000,-259.53,0.00015063,2]
[423230716,1779963038000,-381.02136308,0.00015009,2]
[423230719,1779963038000,-900.0,0.00015068,2]
[423230723,1779963038000,-6111.0,0.00015174,2]
[423230726,1779963038000,-4410.73307623,0.000152,2]
[423230725,1779963038000,-15000.0,0.00015185,2]
[423230727,1779963038000,-10000.0,0.00015212,2]
[423230722,1779963038000,-200.0,0.0001515,2]
[423230724,1779963038000,-10000.0,0.0001518,2]
[423230729,1779963038000,-200.0,0.00015301,2]
[423230676,1779963038000,-1577.91475067,0.00014904,2]
[423230703,1779963038000,-200.0,0.00015,2]
[423230708,1779963038000,-1000.0,0.00015,2]
[423230720,1779963038000,-255.0,0.00015137,2]
[423230711,1779963038000,-150.0,0.00015,2]
[423230701,1779963038000,-1405.72280327,0.00015,2]
[423230680,1779963038000,-150.549,0.00014921,2]
[423230684,1779963038000,-150.0,0.00014921,2]
[423230683,1779963038000,-167.235,0.00014921,2]
[423230728,1779963038000,-480.0,0.00015296,2]
[423230682,1779963038000,-150.0,0.00014921,2]
[423230681,1779963038000,-150.133,0.00014921,2]
[423230686,1779963038000,-150.458,0.00014921,2]
[423230687,1779963038000,-150.0,0.00014921,2]
[423230695,1779963038000,-985.0,0.00015,5]
[423230691,1779963038000,-1272.0,0.00014921,2]
[423230679,1779963038000,-289.487,0.00014921,2]
[423230709,1779963038000,-1000.0,0.00015,2]
[423230696,1779963038000,-783.0,0.00015,5]
[423230689,1779963038000,-3549.0,0.00014921,2]
[423230688,1779963038000,-928.0,0.00014921,2]
[423230697,1779963038000,-7446402.81691998,0.00015,2]
[423230692,1779963038000,-525.0,0.00014921,2]
[423230693,1779963038000,-1225.0,0.00014921,2]
[423230694,1779963038000,-5154.5369277,0.00014999,2]
[423230690,1779963038000,-1356.0,0.00014921,2]
[423230699,1779963038000,-189.58926529,0.00015,2]
[423230698,1779963038000,-428.3647939,0.00015,2]
[423230710,1779963038000,-150.0,0.00015,2]
[423230764,1779963039000,-299.99,0.00016116,4]
[423230769,1779963039000,-2820.4,0.00016438,2]
[423230765,1779963039000,-227.21135545,0.000162,2]
[423230773,1779963039000,-727.0,0.00016438,2]
[423230766,1779963039000,-10000.0,0.000163,30]
[423230774,1779963039000,-727.0,0.00016438,2]
[423230768,1779963039000,-433.0,0.00016342,2]
[423230772,1779963039000,-793.47826507,0.00016438,2]
[423230762,1779963039000,-9999.99,0.00016116,2]
[423230763,1779963039000,-150.99,0.00016116,2]
[423230767,1779963039000,-4410.73307623,0.000163,2]
[423230770,1779963039000,-1425.0,0.00016438,2]
[423230771,1779963039000,-179.92,0.00016438,2]
[423230786,1779963039000,-727.0,0.00016438,2]
[423230775,1779963039000,-727.0,0.00016438,2]
[423230782,1779963039000,-727.0,0.00016438,2]
[423230781,1779963039000,-727.0,0.00016438,2]
[423230780,1779963039000,-727.0,0.00016438,2]
[423230787,1779963039000,-727.0,0.00016438,2]
[423230777,1779963039000,-727.0,0.00016438,2]
[423230784,1779963039000,-727.0,0.00016438,2]
[423230783,1779963039000,-727.0,0.00016438,2]
[423230785,1779963039000,-727.0,0.00016438,2]
[423230778,1779963039000,-727.0,0.00016438,2]
[423230779,1779963039000,-727.0,0.00016438,2]
[423230788,1779963039000,-727.0,0.00016438,2]
[423230792,1779963039000,-727.0,0.00016438,2]
[423230776,1779963039000,-727.0,0.00016438,2]
[423230761,1779963039000,-2800.50485724,0.0001611,15]
[423230736,1779963039000,-4410.73307623,0.000155,2]
[423230758,1779963039000,-500.0,0.00016096,2]
[423230733,1779963039000,-200.0,0.00015455,2]
[423230732,1779963039000,-4410.73307623,0.000154,2]
[423230731,1779963039000,-350.13640107,0.00015361,2]
[423230730,1779963039000,-200.0,0.00015301,2]
[423230734,1779963039000,-200.0,0.00015455,2]
[423230789,1779963039000,-727.0,0.00016438,2]
[423230735,1779963039000,-248.12491381,0.00015464,2]
[423230745,1779963039000,-154.44004852,0.000159,2]
[423230746,1779963039000,-150.0,0.000159,2]
[423230737,1779963039000,-200.0,0.00015609,2]
[423230741,1779963039000,-4410.73307623,0.000158,2]
[423230742,1779963039000,-700.0,0.00015818,2]
[423230744,1779963039000,-150.0,0.000159,2]
[423230743,1779963039000,-150.0,0.000159,2]